fUSD/lending_fUSD_20240708
["ID","MTS","AMOUNT","RATE_DAILY","PERIOD"]
[331467937,1720427898948,-3235.8,0.00034099,37]
[331467938,1720427898994,-1404.03,0.00034099,40]
[331467939,1720427899043,-1484.69,0.00034099,33]
[331467940,1720427899089,-3235.8,0.00034099,38]
[331467941,1720427899137,-1404.03,0.00034099,41]
[331467942,1720427899182,-1484.69,0.00034099,34]
[331467943,1720427899226,-500.0,0.00034099,31]
[331467944,1720427899269,-500.0,0.00034099,30]
[331467945,1720427899313,-3235.8,0.00034099,39]
[331467946,1720427899357,-1404.03,0.00034099,42]
[331467947,1720427899405,-500.0,0.00034099,32]
[331467948,1720427899453,-1484.69,0.00034099,35]
[331467949,1720427899498,-500.0,0.00034099,31]
[331467950,1720427899542,-3235.8,0.00034099,40]
[331467951,1720427899587,-1404.03,0.00034099,43]
[331467952,1720427899631,-500.0,0.00034099,33]
[331467953,1720427899675,-500.0,0.00034099,32]
[331467954,1720427899718,-1484.69,0.00034099,36]
[331467955,1720427899762,-3235.8,0.00034099,41]
[331467956,1720427899808,-1404.03,0.00034099,44]
[331467957,1720427899854,-500.0,0.00034099,34]
[331467958,1720427899900,-500.0,0.00034099,33]
[331467959,1720427899950,-3235.8,0.00034099,42]
[331467960,1720427899999,-1404.03,0.00034099,45]
[331467961,1720427900047,-414.87421449,0.00034099,35]
[331467962,1720427900096,-500.0,0.00034099,34]
[331467963,1720427900151,-1404.03,0.00034099,46]
[331467964,1720427900200,-3235.8,0.00034099,43]
[331467965,1720427900246,-2023.41,0.00034099,30]
[331467966,1720427900293,-500.0,0.00034099,35]
[331467967,1720427900338,-1404.03,0.00034099,47]
[331467968,1720427900383,-3235.8,0.00034099,44]
[331467969,1720427900431,-2023.41,0.00034099,31]
[331467970,1720427900474,-500.0,0.00034099,36]
[331467971,1720427900516,-1404.03,0.00034099,48]
[331467972,1720427900561,-2023.41,0.00034099,32]
[331467973,1720427900608,-500.0,0.00034099,37]
[331467974,1720427900657,-3235.8,0.00034099,45]
[331467975,1720427900704,-2023.41,0.00034099,33]
[331467976,1720427900749,-500.0,0.00034099,38]
[331467977,1720427900796,-3235.8,0.00034099,46]
[331467978,1720427900845,-2023.41,0.00034099,34]
[331467979,1720427900892,-596.11,0.00034099,30]
[331467980,1720427900947,-500.0,0.00034099,39]
[331467981,1720427900994,-3235.8,0.00034099,47]
[331467982,1720427901046,-2023.41,0.00034099,35]
[331467984,1720427901099,-500.0,0.00034099,40]
[331467985,1720427901143,-596.11,0.00034099,31]
[331467986,1720427901188,-3235.8,0.00034099,48]
[331467987,1720427901232,-2023.41,0.00034099,36]
[331467988,1720427901274,-500.0,0.00034099,41]
[331467989,1720427901318,-596.11,0.00034099,32]
[331467990,1720427901360,-2023.41,0.00034099,37]
[331467991,1720427901404,-3235.8,0.00034099,49]
[331467992,1720427901449,-500.0,0.00034099,42]
[331467993,1720427901493,-596.11,0.00034099,33]
[331467994,1720427901535,-2023.41,0.00034099,38]
[331467995,1720427901579,-3235.8,0.00034099,50]
[331467996,1720427901623,-500.0,0.00034099,30]
[331467997,1720427901665,-500.0,0.00034099,43]
[331467998,1720427901709,-596.11,0.00034099,34]
[331467999,1720427901753,-1404.03,0.00034099,49]
[331468000,1720427901799,-2023.41,0.00034099,39]
[331468001,1720427901842,-3235.8,0.00034099,51]
[331468002,1720427901888,-596.11,0.00034099,35]
[331468003,1720427901940,-500.0,0.00034099,44]
[331468004,1720427901989,-2023.41,0.00034099,40]
[331468005,1720427902040,-500.0,0.00034099,30]
[331468006,1720427902086,-1404.03,0.00034099,50]
[331468007,1720427902132,-3235.8,0.00034099,52]
[331468008,1720427902185,-1484.69,0.00034099,37]
[331468009,1720427902230,-596.11,0.00034099,36]
[331468010,1720427902277,-500.0,0.00034099,31]
[331468011,1720427902324,-500.0,0.00034099,45]
[331468012,1720427902370,-2023.41,0.00034099,41]
[331468013,1720427902414,-500.0,0.00034099,31]
[331468014,1720427902458,-1404.03,0.00034099,51]
[331468015,1720427902504,-3235.99385548,0.00034099,53]
[331468016,1720427902551,-1484.69,0.00034099,38]
[331468017,1720427902880,-596.11,0.00034099,37]
[331468018,1720427902933,-500.0,0.00034099,46]
[331468019,1720427902981,-2023.41,0.00034099,42]
[331468020,1720427903024,-500.0,0.00034099,32]
[331468021,1720427903067,-1484.69,0.00034099,39]
[331468022,1720427903121,-1404.03,0.00034099,52]
[331468023,1720427903175,-508.02126349,0.00034099,32]
[331468024,1720427903226,-500.0,0.00034099,33]
[331468025,1720427903272,-1484.69,0.00034099,40]
[331468026,1720427903320,-2023.41,0.00034099,43]
[331468027,1720427903366,-1404.17006142,0.00034099,53]
[331468028,1720427903411,-500.0,0.00034099,47]
[331468029,1720427903457,-2023.41,0.00034099,44]
[331468030,1720427903502,-500.0,0.00034099,34]
[331468031,1720427903546,-1484.69,0.00034099,41]
[331468032,1720427903588,-549.6013872,0.00034099,48]
[331468033,1720427903630,-2023.41,0.00034099,45]
[331468034,1720427903672,-520.93441128,0.00034099,35]
[331468035,1720427903713,-1484.69,0.00034099,42]
[331468036,1720427903756,-2023.41,0.00034099,46]
[331468037,1720427903800,-596.11,0.00034099,38]
[331468038,1720427903843,-1484.69,0.00034099,43]
[331468039,1720427903888,-2023.41,0.00034099,47]
[331468040,1720427903937,-596.11,0.00034099,39]
[331468041,1720427903981,-1484.69,0.00034099,44]
[331468042,1720427904030,-2023.41,0.00034099,48]
[331468043,1720427904084,-596.11,0.00034099,40]
[331468044,1720427904135,-1484.69,0.00034099,45]
[331468045,1720427904188,-2023.41,0.00034099,49]
[331468046,1720427904238,-596.11,0.00034099,41]
[331468047,1720427904291,-1484.69,0.00034099,46]
[331468048,1720427904343,-2023.41,0.00034099,50]
[331468049,1720427904394,-596.11,0.00034099,42]
[331468050,1720427904447,-1484.69,0.00034099,47]
[331468051,1720427904496,-2023.41,0.00034099,51]
[331468052,1720427904548,-596.11,0.00034099,43]
[331468053,1720427904600,-2023.41,0.00034099,52]
[331468054,1720427904660,-596.11,0.00034099,44]
[331468055,1720427904716,-1484.69,0.00034099,48]
[331468056,1720427904768,-2023.53645827,0.00034099,53]
[331468057,1720427904820,-596.11,0.00034099,45]
[331468058,1720427904871,-591.72,0.00034099,30]
[331468059,1720427904923,-1484.69,0.00034099,49]
[331468060,1720427904981,-596.11,0.00034099,46]
[331468061,1720427905034,-1484.69,0.00034099,50]
[331468062,1720427905087,-591.72,0.00034099,31]
[331468063,1720427905141,-596.11,0.00034099,47]
[331468064,1720427905205,-3508.97,0.00034099,30]
[331468065,1720427905257,-1484.69,0.00034099,51]
[331468066,1720427905310,-591.72,0.00034099,32]
[331468067,1720427905365,-596.11,0.00034099,48]
[331468068,1720427905417,-1484.69,0.00034099,52]
[331468069,1720427905471,-3508.97,0.00034099,31]
[331468070,1720427905521,-591.72,0.00034099,33]
[331468071,1720427905572,-596.11,0.00034099,49]
[331468072,1720427905622,-3508.97,0.00034099,32]
[331468073,1720427905670,-1484.83358994,0.00034099,53]
[331468074,1720427905717,-591.72,0.00034099,34]
[331468075,1720427905765,-596.11,0.00034099,50]
[331468076,1720427905814,-591.72,0.00034099,35]
[331468077,1720427905869,-3508.97,0.00034099,33]
[331468078,1720427905921,-500.0,0.00034099,30]
[331468079,1720427905975,-591.72,0.00034099,36]
[331468080,1720427906027,-596.11,0.00034099,51]
[331468081,1720427906079,-500.0,0.00034099,31]
[331468082,1720427906130,-591.72,0.00034099,37]
[331468083,1720427906178,-596.11,0.00034099,52]
[331468084,1720427906226,-3508.97,0.00034099,34]
[331468085,1720427906275,-500.0,0.00034099,32]
[331468086,1720427906322,-591.72,0.00034099,38]
[331468087,1720427906370,-500.0,0.00034099,33]
[331468088,1720427906420,-591.72,0.00034099,39]
[331468089,1720427906468,-3508.97,0.00034099,35]
[331468090,1720427906514,-500.0,0.00034099,34]
[331468091,1720427906558,-591.72,0.00034099,40]
[331468092,1720427906603,-3508.97,0.00034099,36]
[331468093,1720427906651,-500.0,0.00034099,35]
[331468094,1720427906698,-591.72,0.00034099,41]
[331468095,1720427906742,-3508.97,0.00034099,37]
[331468096,1720427906786,-591.72,0.00034099,42]
[331468097,1720427906832,-500.0,0.00034099,36]
[331468098,1720427906879,-2035.7,0.00034099,30]
[331468099,1720427906926,-3508.97,0.00034099,38]
[331468100,1720427906978,-591.72,0.00034099,43]
[331468101,1720427907026,-500.0,0.00034099,37]
[331468102,1720427907074,-2035.7,0.00034099,31]
[331468103,1720427907118,-591.72,0.00034099,44]
[331468104,1720427907164,-500.0,0.00034099,38]
[331468105,1720427907209,-591.72,0.00034099,45]
[331468106,1720427907255,-3508.97,0.00034099,39]
[331468107,1720427907302,-2035.7,0.00034099,32]
[331468108,1720427907349,-3508.97,0.00034099,40]
[331468109,1720427907402,-591.72,0.00034099,46]
[331468110,1720427907451,-2035.7,0.00034099,33]
[331468111,1720427907498,-591.72,0.00034099,47]
[331468112,1720427907546,-596.12,0.00034099,53]
[331468113,1720427907594,-2991.81,0.00034099,30]
[331468114,1720427907644,-2035.7,0.00034099,34]
[331468115,1720427907696,-3508.97,0.00034099,41]
[331468116,1720427907748,-2991.81,0.00034099,31]
[331468117,1720427907795,-2035.7,0.00034099,35]
[331468118,1720427907841,-591.72,0.00034099,48]
[331468119,1720427907887,-3508.97,0.00034099,42]
[331468120,1720427907941,-2991.81,0.00034099,32]
[331468121,1720427908200,-2035.7,0.00034099,36]
[331468122,1720427908251,-591.72,0.00034099,49]
[331468123,1720427908299,-3508.97,0.00034099,43]
[331468124,1720427908349,-2991.81,0.00034099,33]
[331468125,1720427908399,-2035.7,0.00034099,37]
[331468126,1720427908451,-591.72,0.00034099,50]
[331468127,1720427908496,-3508.97,0.00034099,44]
[331468128,1720427908543,-2035.7,0.00034099,38]
[331468129,1720427908589,-3508.97,0.00034099,45]
[331468130,1720427908638,-591.72,0.00034099,51]
[331468131,1720427908688,-2991.81,0.00034099,34]
[331468132,1720427908734,-3508.97,0.00034099,46]
[331468133,1720427908779,-179.4429739,0.00034099,30]
[331468134,1720427908824,-591.72,0.00034099,52]
[331468135,1720427908870,-2035.7,0.00034099,39]
[331468136,1720427908917,-3508.97,0.00034099,47]
[331468137,1720427908969,-2991.81,0.00034099,35]
[331468138,1720427909016,-2035.7,0.00034099,40]
[331468139,1720427909064,-2991.81,0.00034099,36]
[331468140,1720427909114,-3508.97,0.00034099,48]
[331468141,1720427909165,-591.75299273,0.00034099,53]
[331468142,1720427909217,-2035.7,0.00034099,41]
[331468143,1720427909264,-2991.81,0.00034099,37]
[331468144,1720427909310,-3508.97,0.00034099,49]
[331468145,1720427909356,-2035.7,0.00034099,42]
[331468146,1720427909404,-3508.97,0.00034099,50]
[331468147,1720427909452,-2991.81,0.00034099,38]
[331468148,1720427909496,-2035.7,0.00034099,43]
[331468149,1720427909540,-3508.97,0.00034099,51]
[331468150,1720427909584,-2991.81,0.00034099,39]
[331468151,1720427909629,-2035.7,0.00034099,44]
[331468152,1720427909673,-2991.81,0.00034099,40]
[331468153,1720427909719,-3508.97,0.00034099,52]
[331468154,1720427909766,-2035.7,0.00034099,45]
[331468155,1720427909811,-2991.81,0.00034099,41]
[331468156,1720427909858,-3509.12795369,0.00034099,53]
[331468157,1720427909908,-2035.7,0.00034099,46]
[331468158,1720427909961,-2991.81,0.00034099,42]
[331468159,1720427910011,-2035.7,0.00034099,47]
[331468160,1720427910067,-2991.81,0.00034099,43]
[331468161,1720427910122,-2035.7,0.00034099,48]
[331468162,1720427910178,-2991.81,0.00034099,44]
[331468163,1720427910233,-2035.7,0.00034099,49]
[331468164,1720427910287,-2991.81,0.00034099,45]
[331468165,1720427910342,-2991.81,0.00034099,46]
[331468166,1720427910396,-2035.7,0.00034099,50]
[331468167,1720427910453,-2991.81,0.00034099,47]
[331468168,1720427910505,-2991.81,0.00034099,48]
[331468169,1720427910557,-2035.7,0.00034099,51]
[331468170,1720427910608,-2991.81,0.00034099,49]
[331468171,1720427910659,-2035.7,0.00034099,52]
[331468172,1720427910707,-2991.81,0.00034099,50]
[331468173,1720427910754,-2035.81380573,0.00034099,53]
[331468174,1720427910801,-2991.81,0.00034099,51]
[331468175,1720427910848,-2991.81,0.00034099,52]
[331468176,1720427910895,-2992.03432276,0.00034099,53]
[331468177,1720427910950,-500.0,0.00034099,30]
[331468178,1720427911004,-500.0,0.00034099,31]
[331468179,1720427911061,-500.0,0.00034099,32]
[331468180,1720427911113,-500.0,0.00034099,33]
[331468181,1720427911168,-402.92464602,0.00034099,34]
[331468182,1720427911226,-500.0,0.00034099,30]
[331468183,1720427911281,-500.0,0.00034099,31]
[331468184,1720427912633,-500.0,0.00034099,32]
[331468185,1720427912692,-500.0,0.00034099,33]
[331468186,1720427912746,-500.0,0.00034099,34]
[331468187,1720427912796,-500.0,0.00034099,35]
[331468188,1720427912844,-500.0,0.00034099,36]
[331468189,1720427912892,-561.47519648,0.00034099,30]
[331468190,1720427912944,-500.0,0.00034099,37]
[331468191,1720427912990,-500.0,0.00034099,38]
[331468192,1720427913037,-500.0,0.00034099,39]
[331468193,1720427913082,-500.0,0.00034099,30]
[331468194,1720427913133,-500.0,0.00034099,40]
[331468195,1720427913182,-500.0,0.00034099,31]
[331468196,1720427913229,-500.0,0.00034099,41]
[331468197,1720427913277,-500.0,0.00034099,32]
[331468198,1720427913330,-500.0,0.00034099,42]
[331468199,1720427913382,-500.0,0.00034099,43]
[331468200,1720427913432,-500.0,0.00034099,33]
[331468201,1720427913482,-518.7411659,0.00034099,30]
[331468202,1720427913528,-500.0,0.00034099,44]
[331468203,1720427913575,-500.0,0.00034099,34]
[331468204,1720427913621,-500.0,0.00034099,45]
[331468205,1720427913668,-179.4629974,0.00034099,35]
[331468206,1720427913714,-2128.57,0.00034099,30]
[331468207,1720427913761,-500.0,0.00034099,46]
[331468208,1720427913807,-2128.57,0.00034099,31]
[331468209,1720427913853,-500.0,0.00034099,47]
[331468210,1720427913900,-500.0,0.00034099,48]
[331468211,1720427913951,-2128.57,0.00034099,32]
[331468212,1720427913997,-500.0,0.00034099,49]
[331468213,1720427914044,-2128.57,0.00034099,33]
[331468214,1720427914090,-500.0,0.00034099,50]
[331468215,1720427914135,-2128.57,0.00034099,34]
[331468216,1720427914179,-500.0,0.00034099,30]
[331468217,1720427914224,-482.16,0.00034099,51]
[331468218,1720427914272,-2128.57,0.00034099,35]
[331468219,1720427914320,-500.0,0.00034099,31]
[331468220,1720427914369,-2128.57,0.00034099,36]
[331468221,1720427914415,-500.0,0.00034099,32]
[331468222,1720427914460,-500.0,0.00034099,33]
[331468223,1720427914505,-2128.57,0.00034099,37]
[331468224,1720427914549,-500.0,0.00034099,34]
[331468225,1720427914799,-2128.57,0.00034099,38]
[331468226,1720427914846,-602.94095393,0.00034099,35]
[331468227,1720427914893,-2128.57,0.00034099,39]
[331468228,1720427914944,-2128.57,0.00034099,40]
[331468229,1720427914992,-2128.57,0.00034099,41]
[331468230,1720427915044,-2128.57,0.00034099,42]
[331468231,1720427915095,-1851.79,0.00034099,30]
[331468232,1720427915145,-2128.57,0.00034099,43]
[331468233,1720427915196,-1851.79,0.00034099,31]
[331468234,1720427915245,-2128.57,0.00034099,44]
[331468235,1720427915290,-1851.79,0.00034099,32]
[331468236,1720427915335,-2128.57,0.00034099,45]
[331468237,1720427915383,-1851.79,0.00034099,33]
[331468238,1720427915432,-1851.79,0.00034099,34]
[331468239,1720427915481,-500.0,0.00034099,30]
[331468240,1720427915528,-1851.79,0.00034099,35]
[331468241,1720427915576,-2128.57,0.00034099,46]
[331468242,1720427915620,-1851.79,0.00034099,36]
[331468243,1720427915664,-1851.79,0.00034099,37]
[331468244,1720427915707,-2128.57,0.00034099,47]
[331468245,1720427915750,-500.0,0.00034099,31]
[331468246,1720427915793,-1851.79,0.00034099,38]
[331468247,1720427915836,-2128.57,0.00034099,48]
[331468248,1720427915879,-500.0,0.00034099,32]
[331468249,1720427915927,-2128.57,0.00034099,49]
[331468250,1720427915977,-1851.79,0.00034099,39]
[331468251,1720427916022,-500.0,0.00034099,33]
[331468252,1720427916067,-2128.57,0.00034099,50]
[331468253,1720427916113,-1851.79,0.00034099,40]
[331468254,1720427916164,-500.0,0.00034099,34]
[331468255,1720427916212,-2128.57,0.00034099,51]
[331468256,1720427916261,-1851.79,0.00034099,41]
[331468257,1720427916311,-367.4955527,0.00034099,35]
[331468258,1720427916362,-2364.49,0.00034099,30]
[331468259,1720427916410,-2128.57,0.00034099,52]
[331468260,1720427916454,-1851.79,0.00034099,42]
[331468261,1720427916500,-500.0,0.00034099,30]
[331468262,1720427916547,-2128.79061624,0.00034099,53]
[331468263,1720427916596,-2364.49,0.00034099,31]
[331468264,1720427916641,-1851.79,0.00034099,43]
[331468265,1720427916696,-500.0,0.00034099,31]
[331468266,1720427916746,-2364.49,0.00034099,32]
[331468267,1720427916793,-1851.79,0.00034099,44]
[331468268,1720427916839,-2364.49,0.00034099,33]
[331468269,1720427916886,-1851.79,0.00034099,45]
[331468270,1720427916934,-500.0,0.00034099,32]
[331468271,1720427916979,-2364.49,0.00034099,34]
[331468272,1720427917025,-1851.79,0.00034099,46]
[331468273,1720427917072,-500.0,0.00034099,33]
[331468274,1720427917120,-2364.49,0.00034099,35]
[331468275,1720427917166,-1851.79,0.00034099,47]
[331468276,1720427917212,-500.0,0.00034099,34]
[331468277,1720427917259,-2364.49,0.00034099,36]
[331468278,1720427917305,-1851.79,0.00034099,48]
[331468279,1720427917353,-500.0,0.00034099,35]
[331468280,1720427917399,-249.0007292,0.00034099,30]
[331468281,1720427917448,-2364.49,0.00034099,37]
[331468282,1720427917492,-1851.79,0.00034099,49]
[331468283,1720427917535,-500.0,0.00034099,36]
[331468284,1720427917580,-2364.49,0.00034099,38]
[331468285,1720427917623,-500.0,0.00034099,37]
[331468286,1720427917668,-2364.49,0.00034099,39]
[331468287,1720427917710,-1851.79,0.00034099,50]
[331468288,1720427917752,-3565.51,0.00034099,30]
[331468289,1720427917792,-500.0,0.00034099,38]
[331468290,1720427917834,-705.82,0.00034099,30]
[331468291,1720427917875,-3565.51,0.00034099,31]
[331468292,1720427917918,-2364.49,0.00034099,40]
[331468293,1720427917965,-1851.79,0.00034099,51]
[331468294,1720427918013,-500.0,0.00034099,39]
[331468295,1720427918057,-3565.51,0.00034099,32]
[331468296,1720427918106,-705.82,0.00034099,31]
[331468297,1720427918158,-2364.49,0.00034099,41]
[331468298,1720427918203,-1851.79,0.00034099,52]
[331468299,1720427918248,-500.0,0.00034099,40]
[331468300,1720427918292,-705.82,0.00034099,32]
[331468301,1720427918338,-3565.51,0.00034099,33]
[331468302,1720427918386,-1851.86408609,0.00034099,53]
[331468303,1720427918433,-2364.49,0.00034099,42]
[331468304,1720427918477,-500.0,0.00034099,41]
[331468305,1720427918522,-2364.49,0.00034099,43]
[331468306,1720427918568,-3565.51,0.00034099,34]
[331468307,1720427918615,-500.0,0.00034099,42]
[331468308,1720427918663,-705.82,0.00034099,33]
[331468309,1720427918709,-500.0,0.00034099,43]
[331468310,1720427918760,-3565.51,0.00034099,35]
[331468311,1720427918808,-2364.49,0.00034099,44]
[331468312,1720427918852,-3565.51,0.00034099,36]
[331468313,1720427918896,-500.0,0.00034099,44]
[331468314,1720427918947,-705.82,0.00034099,34]
[331468315,1720427918996,-2364.49,0.00034099,45]
[331468316,1720427919047,-500.0,0.00034099,45]
[331468317,1720427919099,-3565.51,0.00034099,37]
[331468318,1720427919154,-2364.49,0.00034099,46]
[331468319,1720427919213,-705.82,0.00034099,35]
[331468320,1720427919267,-500.0,0.00034099,46]
[331468321,1720427919320,-3565.51,0.00034099,38]
[331468322,1720427919374,-2364.49,0.00034099,47]
[331468323,1720427919427,-705.82,0.00034099,36]
[331468324,1720427919486,-500.0,0.00034099,47]
[331468325,1720427919545,-3565.51,0.00034099,39]
[331468326,1720427919609,-2364.49,0.00034099,48]
[331468327,1720427919682,-705.82,0.00034099,37]
[331468328,1720427919744,-3565.51,0.00034099,40]
[331468329,1720427919999,-705.82,0.00034099,38]
[331468330,1720427920058,-3565.51,0.00034099,41]
[331468331,1720427920116,-2364.49,0.00034099,49]
[331468332,1720427920175,-705.82,0.00034099,39]
[331468333,1720427920236,-3565.51,0.00034099,42]
[331468334,1720427920293,-705.82,0.00034099,40]
[331468335,1720427920346,-2364.49,0.00034099,50]
[331468336,1720427920400,-3565.51,0.00034099,43]
[331468337,1720427920459,-705.82,0.00034099,41]
[331468338,1720427920512,-2364.49,0.00034099,51]
[331468339,1720427920566,-3565.51,0.00034099,44]
[331468340,1720427920619,-2364.49,0.00034099,52]
[331468342,1720427920673,-3565.51,0.00034099,45]
[331468343,1720427920729,-500.0,0.00034099,30]
[331468344,1720427920782,-2364.59752206,0.00034099,53]
[331468345,1720427920839,-705.82,0.00034099,42]
[331468346,1720427920893,-3565.51,0.00034099,46]
[331468347,1720427920950,-500.0,0.00034099,31]
[331468348,1720427921002,-705.82,0.00034099,43]
[331468349,1720427921058,-3565.51,0.00034099,47]
[331468350,1720427921110,-500.0,0.00034099,32]
[331468351,1720427921167,-705.82,0.00034099,44]
[331468352,1720427921220,-3565.51,0.00034099,48]
[331468353,1720427921275,-500.0,0.00034099,33]
[331468354,1720427921334,-705.82,0.00034099,45]
[331468355,1720427921392,-500.0,0.00034099,34]
[331468356,1720427921446,-3565.51,0.00034099,49]
[331468357,1720427921499,-705.82,0.00034099,46]
[331468358,1720427921555,-500.0,0.00034099,35]
[331468359,1720427921611,-3565.51,0.00034099,50]
[331468360,1720427921666,-705.82,0.00034099,47]
[331468361,1720427921720,-500.0,0.00034099,36]
[331468362,1720427921776,-3565.51,0.00034099,51]
[331468363,1720427921831,-705.82,0.00034099,48]
[331468364,1720427921887,-500.0,0.00034099,37]
[331468365,1720427921942,-3565.51,0.00034099,52]
[331468366,1720427921998,-500.0,0.00034099,38]
[331468367,1720427922057,-500.0,0.00034099,30]
[331468368,1720427922115,-705.82,0.00034099,49]
[331468369,1720427922172,-500.0,0.00034099,39]
[331468370,1720427922229,-3565.62217262,0.00034099,53]
[331468371,1720427922283,-705.82,0.00034099,50]
[331468372,1720427922337,-500.0,0.00034099,31]
[331468373,1720427922388,-500.0,0.00034099,40]
[331468374,1720427922444,-705.82,0.00034099,51]
[331468375,1720427922494,-500.0,0.00034099,32]
[331468376,1720427922545,-500.0,0.00034099,41]
[331468377,1720427922597,-705.82,0.00034099,52]
[331468378,1720427922650,-500.0,0.00034099,33]
[331468379,1720427922706,-343.68,0.00034099,42]
[331468380,1720427922761,-705.86295335,0.00034099,53]
[331468381,1720427922814,-500.0,0.00034099,34]
[331468382,1720427922867,-500.0,0.00034099,35]
[331468383,1720427922921,-500.0,0.00034099,36]
[331468384,1720427922974,-500.0,0.00034099,37]
[331468385,1720427923029,-500.0,0.00034099,38]
[331468386,1720427923081,-500.0,0.00034099,39]
[331468387,1720427923136,-500.0,0.00034099,40]
[331468388,1720427923190,-3056.79,0.00034099,30]
[331468389,1720427923249,-372.98407491,0.00034099,30]
[331468390,1720428001070,555.32,0.00010795,2]
[331468391,1720428045002,465.54,0.00027,120]
[331468398,1720428218603,16.78,0.00011199,2]
[331468399,1720428218630,287.84275169,0.00011199,2]
[331468403,1720428318775,511.27038665,0.00011199,2]
[331468406,1720428330475,308.16298812,0.00011199,2]
[331468408,1720428364578,200.07565574,0.00011199,2]
[331468410,1720428369234,307.59113526,0.00011199,2]
[331468412,1720428424254,530.36557167,0.00011199,2]
[331468415,1720428435688,527.55,0.00010459,2]
[331468454,1720428566147,224.2318873,0.00025,60]
[331468509,1720428616590,550.61515572,0.00011199,2]
[331468518,1720428632231,-304.62275169,0.00012302,2]
[331468519,1720428632242,-198.75,0.0001231,2]
[331468520,1720428632252,-304.62275169,0.00012314,2]
[331468521,1720428632260,-184.67179423,0.00012314,4]
[331468522,1720428632270,-250.0,0.00012316,2]
[331468523,1720428632293,-2821.24,0.00012316,2]
[331468524,1720428632303,-741.84513559,0.00012548,2]
[331468525,1720428632311,-300.0,0.00012557,2]
[331468526,1720428632322,-172.42966663,0.00012558,2]
[331468527,1720428632331,-250.0,0.00012605,2]
[331468528,1720428632339,-150.0,0.00012658,2]
[331468529,1720428632348,-500.0,0.00012672,2]
[331468530,1720428632357,-447.86,0.00012702,2]
[331468531,1720428632366,-152.0,0.00012707,2]
[331468532,1720428632374,-299.99,0.00012707,2]
[331468533,1720428632383,-172.48,0.00012717,2]
[331468534,1720428632392,-527.55,0.00012723,2]
[331468535,1720428632401,-400.0,0.00012741,2]
[331468536,1720428632412,-155.76,0.00012746,2]
[331468537,1720428632422,-155.76,0.00012785,2]
[331468538,1720428632431,-388.58987389,0.00012817,2]
[331468539,1720428632440,-155.76,0.00012824,2]
[331468540,1720428632449,-155.76,0.00012863,2]
[331468541,1720428632458,-155.76,0.00012902,2]
[331468542,1720428632467,-155.76,0.00012942,2]
[331468543,1720428632477,-155.76,0.00012981,2]
[331468544,1720428632486,-155.76,0.0001302,2]
[331468545,1720428632495,-155.76,0.00013059,2]
[331468546,1720428632504,-831.44,0.00013085,2]
[331468547,1720428632513,-155.76,0.00013098,2]
[331468548,1720428632526,-615.75456202,0.00013128,2]
[331468549,1720428632535,-155.76,0.00013137,2]
[331468551,1720428632545,-155.76,0.00013176,2]
[331468553,1720428632557,-155.76,0.00013215,2]
[331468555,1720428632568,-391.75,0.00013225,2]
[331468556,1720428632579,-150.99,0.00013225,2]
[331468557,1720428632590,-155.76,0.00013254,2]